bitfinex/quotes_ETHUSD_20250929
["timestamp","ask_amount","ask_price","bid_price","bid_amount"]
[1759123229790,10.25254722,4113.4,4112.5,0.4504]
[1759123229954,13.30754722,4113.4,4112.7,0.4504]
[1759123230155,14.88139803,4113.4,4112.7,0.4504]
[1759123231284,14.88139803,4113.4,4112.6,0.2493]
[1759123231481,14.88139803,4113.4,4112.4,16.39221763]
[1759123231703,14.88139803,4113.4,4112.7,0.6997]
[1759123232592,11.82639803,4113.4,4112.7,0.6997]
[1759123232794,4.57385081,4113.4,4112.7,0.6997]
[1759123232996,7.82146831,4113.4,4113.1,0.6997]
[1759123233184,7.82146831,4113.4,4113.3,0.7017]
[1759123236111,7.82146831,4113.4,4113.3,0.002]
[1759123236485,7.82146831,4113.4,4113.3,0.7017]
[1759123237011,7.82146831,4113.4,4113.3,3.13283801]
[1759123237914,7.82146831,4113.4,4113.3,0.7017]
[1759123238315,7.82146831,4113.4,4113.3,3.13283801]
[1759123239827,7.82146831,4113.4,4113.3,0.7017]
[1759123240434,7.82146831,4113.4,4113.3,3.13283801]
[1759123242730,7.82146831,4113.4,4113.3,17.63283801]
[1759123242907,3.0,4113.4,4113.3,17.63283801]
[1759123243111,7.82146831,4113.4,4113.3,17.63283801]
[1759123243499,7.82146831,4113.4,4113.3,3.13283801]
[1759123244100,0.1208,4113.8,4113.7,2.43090162]
[1759123244300,0.38132268,4114.2,4113.3,0.6851]
[1759123244301,0.1208,4114.2,4114.1,2.43065042]
[1759123244523,3.1208,4114.2,4114.1,2.65775042]
[1759123245130,3.1208,4114.2,4114.1,3.11375042]
[1759123245340,4.94226831,4114.2,4114.1,3.11375042]
[1759123246038,0.001,4114.3,4114.2,2.43060619]
[1759123246232,0.001,4114.3,4114.2,3.11370619]
[1759123247826,0.001,4114.3,4114.2,17.61370619]
[1759123268195,0.001,4114.3,4114.2,16.93060619]
[1759123268396,0.001,4114.3,4114.1,0.1208]
[1759123268586,0.001,4114.3,4113.6,0.002]
[1759123268587,5.57903458,4114.2,4114.0,2.43067972]
[1759123269082,5.57903458,4114.2,4113.8,2.43079618]
[1759123269295,5.57903458,4114.2,4113.9,2.43078344]
[1759123269496,0.57008346,4114.1,4113.7,2.55165365]
[1759123269701,0.57008346,4114.1,4114.0,2.43072435]
[1759123271013,0.001,4114.3,4114.2,2.43060619]
[1759123272915,0.001,4114.3,4114.2,2.65780619]
[1759123273315,0.001,4114.3,4114.2,2.43060619]
[1759123274219,0.001,4114.3,4114.2,3.11970619]
[1759123274397,0.001,4114.3,4114.2,3.24050619]
[1759123275503,0.001,4114.3,4114.2,17.74050619]
[1759123279086,0.001,4114.3,4114.2,17.05140619]
[1759123279525,0.001,4114.3,4114.2,17.74050619]
[1759123287422,0.001,4114.3,4114.2,18.53250619]
[1759123293359,0.001,4114.3,4114.2,18.62995486]
[1759123297361,0.001,4115.2,4115.1,2.4300746]
[1759123297568,0.001,4115.2,4115.1,2.94039802]
[1759123298059,0.001,4115.2,4115.1,17.44039802]
[1759123298260,0.001,4115.2,4115.1,17.41609728]
[1759123301457,0.001,4115.2,4115.1,18.08159728]
[1759123303573,0.001,4115.2,4115.1,17.41609728]
[1759123305386,0.001,4115.2,4115.1,18.08159728]
[1759123307065,0.001,4115.2,4115.1,18.87359728]
[1759123307597,0.001,4115.2,4115.1,18.99439728]
[1759123308108,0.001,4115.2,4115.1,18.97102222]
[1759123308266,0.001,4115.2,4115.1,17.51352222]
[1759123308594,0.001,4115.2,4115.1,20.41609728]
[1759123308968,0.001,4115.2,4115.1,19.9300746]
[1759123309981,0.001,4115.2,4115.1,20.5955746]
[1759123310877,0.001,4115.2,4115.1,21.3875746]
[1759123315815,0.001,4115.2,4115.1,18.3875746]
[1759123316820,1e-08,4115.7,4115.2,3.22201555]
[1759123316986,1e-08,4115.7,4115.6,2.42977937]
[1759123317414,1e-08,4115.7,4115.6,17.61957716]
[1759123317719,1e-08,4115.7,4115.6,17.6926979]
[1759123317905,1e-08,4115.7,4115.6,17.8134979]
[1759123318315,1e-08,4115.7,4115.6,17.1479979]
[1759123320142,1e-08,4115.7,4115.6,17.8134979]
[1759123320828,1e-08,4115.7,4115.6,18.6054979]
[1759123323245,1e-08,4115.7,4115.6,17.9399979]
[1759123324108,1e-08,4115.7,4115.6,17.1479979]
[1759123325338,1e-08,4115.7,4115.6,17.05057937]
[1759123329444,1e-08,4115.7,4115.6,17.1480017]
[1759123330659,1e-08,4115.7,4115.6,17.8143017]
[1759123331720,1e-08,4115.7,4115.6,17.1480017]
[1759123335545,1e-08,4115.7,4115.6,17.8551017]
[1759123336558,1e-08,4115.7,4115.6,17.1480017]
[1759123336716,1e-08,4115.7,4115.6,17.05057937]
[1759123344802,1e-08,4115.7,4115.6,17.75767937]
[1759123344984,1e-08,4115.7,4115.6,17.05057937]
[1759123347313,1e-08,4115.7,4115.6,17.05257937]
[1759123355014,1e-08,4115.7,4115.6,17.29547937]
[1759123356828,1e-08,4115.7,4115.6,17.05257937]
[1759123357031,1e-08,4115.7,4115.6,17.75967937]
[1759123360730,1e-08,4115.7,4115.6,17.29547937]
[1759123360930,1e-08,4115.7,4115.6,17.05257937]
[1759123361335,1e-08,4115.7,4115.6,17.73917937]
[1759123370022,1e-08,4115.7,4115.6,17.83660645]
[1759123373554,1e-08,4115.7,4115.6,20.88060645]
[1759123375956,1e-08,4115.7,4115.6,20.19400645]
[1759123379056,1e-08,4115.7,4115.6,20.43320645]
[1759123379228,1e-08,4115.7,4115.6,20.88060645]
[1759123384336,1e-08,4115.7,4115.6,21.67260645]
[1759123384644,1e-08,4115.7,4115.6,23.43320645]
[1759123384943,1e-08,4115.7,4115.6,23.88060645]
[1759123386737,1e-08,4115.7,4115.6,23.19400645]
[1759123387160,1e-08,4115.7,4115.6,23.88060645]
[1759123393747,1e-08,4115.7,4115.6,9.38060645]
[1759123394189,1e-08,4115.7,4115.6,23.88060645]
[1759123402086,1e-08,4115.7,4115.6,23.19400645]
[1759123402584,1e-08,4115.7,4115.6,23.43150645]
[1759123402987,1e-08,4115.7,4115.6,23.88330645]
[1759123410952,1e-08,4115.7,4115.6,23.19400645]
[1759123411141,1e-08,4115.7,4115.6,23.88330645]
[1759123412695,1e-08,4115.7,4115.6,23.19400645]
[1759123416598,1e-08,4115.7,4115.6,20.19400645]
[1759123417430,1e-08,4115.7,4115.6,14.72022708]
[1759123417596,1e-08,4115.7,4115.6,0.002]
[1759123418480,1e-08,4115.7,4115.6,6.97937716]
[1759123418721,1e-08,4115.7,4115.6,11.24182287]
[1759123419014,0.001,4116.1,4116.0,6.22154324]
[1759123419223,0.001,4116.1,4116.0,9.27454324]
[1759123419532,0.001,4116.1,4116.0,9.95074324]
[1759123419714,0.001,4116.1,4116.0,24.45074324]
[1759123421112,0.001,4116.1,4116.0,21.39774324]
[1759123421322,0.001,4116.1,4116.0,20.60574324]
[1759123421617,0.001,4116.1,4116.0,20.0269518]
[1759123421829,0.001,4116.1,4116.0,17.0269518]
[1759123424905,0.001,4116.1,4116.0,2.5269518]
[1759123425424,0.001,4116.1,4116.0,17.0269518]
[1759123425792,0.001,4116.1,4116.0,14.59740856]
[1759123425993,0.55866211,4116.1,4116.0,14.59740856]
[1759123426192,0.55866211,4116.1,4116.0,14.5]
[1759123426395,0.55866211,4116.1,4115.6,0.002]
[1759123426623,5.57462112,4115.8,4115.6,2.43176098]
[1759123426829,5.57462112,4115.8,4115.7,16.92972033]
[1759123430402,5.57462112,4115.8,4115.7,2.42972033]
[1759123430958,5.84841893,4115.8,4115.7,14.5]
[1759123431959,5.84841893,4115.8,4115.6,0.002]
[1759123432259,4.82044385,4115.7,4115.6,0.002]
[1759123433039,7.25016418,4115.7,4115.6,0.002]
[1759123433342,4.82044385,4115.7,4115.6,0.002]
[1759123433545,6.2978358,4115.7,4115.6,0.002]
[1759123440072,8.72755613,4115.7,4115.6,0.002]
[1759123440555,6.2978358,4115.7,4115.6,0.002]
[1759123444776,6.2978358,4115.7,4115.1,0.002]
[1759123444957,3.0,4115.0,4114.3,0.002]
[1759123445276,4.82044385,4114.4,4114.3,0.002]
[1759123445845,7.25093189,4114.4,4114.3,0.002]
[1759123446046,4.82044385,4114.4,4114.3,0.002]
[1759123446246,5.54552102,4114.4,4114.3,0.002]
[1759123446747,7.97600906,4114.4,4114.3,0.002]
[1759123447975,5.54552102,4114.4,4114.3,0.002]
[1759123451182,7.97600906,4114.4,4114.3,0.002]
[1759123451385,5.54552102,4114.4,4114.3,0.002]
[1759123453073,7.97600906,4114.4,4114.3,0.002]
[1759123453376,5.54552102,4114.4,4114.3,0.002]
[1759123454576,7.97600906,4114.4,4114.3,0.002]
[1759123454875,5.54552102,4114.4,4114.3,0.002]
[1759123455898,12.43700906,4114.4,4114.3,0.002]
[1759123456076,12.43700906,4114.4,4113.9,0.002]
[1759123456077,2.43072435,4114.0,4113.9,0.002]
[1759123456272,2.43101981,4113.5,4112.9,0.6656]
[1759123456585,15.07190751,4113.5,4112.9,0.6656]
[1759123457369,10.25146366,4113.5,4112.9,0.6656]
[1759123458467,7.82044385,4113.5,4113.0,0.2287]
[1759123458668,8.99167992,4113.5,4113.0,0.2287]
[1759123459767,8.99167992,4113.5,4113.0,0.6656]
[1759123460156,11.42269973,4113.5,4113.0,0.6656]
[1759123460356,8.99167992,4113.5,4113.0,0.6656]
[1759123460985,11.42269973,4113.5,4113.0,0.6656]
[1759123461600,8.99167992,4113.5,4113.0,0.6656]
[1759123461962,11.42269973,4113.5,4113.0,0.6656]
[1759123462373,11.42269973,4113.5,4112.7,2.43148986]
[1759123462590,11.42269973,4113.5,4112.9,0.2287]
[1759123462781,8.99167992,4113.5,4112.9,0.2287]
[1759123463492,8.99167992,4113.5,4113.0,0.2287]
[1759123463493,11.42269973,4113.5,4113.0,0.2287]
[1759123463993,8.99167992,4113.5,4113.1,0.2287]
[1759123464173,11.42269973,4113.5,4113.1,0.2287]
[1759123464488,8.99167992,4113.5,4113.1,0.2287]
[1759123465389,8.99167992,4113.5,4113.2,0.6656]
[1759123465960,8.99681231,4113.5,4113.2,0.6656]
[1759123466161,8.99681231,4113.5,4113.2,0.4369]
[1759123466480,8.99681231,4113.5,4113.2,0.6656]
[1759123468960,11.42783212,4113.5,4112.8,0.2287]
[1759123469164,8.99681231,4113.5,4112.8,0.2287]
[1759123469380,8.99681231,4113.5,4113.3,0.002]
[1759123469761,11.42783212,4113.5,4113.3,0.002]
[1759123470273,14.48183212,4113.5,4113.3,0.002]
[1759123470893,4.17123607,4113.5,4113.4,0.4389]
[1759123471071,6.054,4113.5,4113.4,0.6676]
[1759123471275,6.054,4113.5,4113.4,0.002]
[1759123471992,3.054,4113.5,4113.4,0.002]
[1759123472980,3.0,4113.5,4113.4,0.002]
[1759123473192,10.88057624,4113.5,4113.4,0.002]
[1759123473393,12.39605538,4113.5,4113.4,0.002]
[1759123473575,14.82707519,4113.5,4113.4,0.002]
[1759123475085,12.39605538,4113.5,4113.4,0.002]
[1759123476109,4.51547914,4113.5,4113.4,0.002]
[1759123476297,12.34157624,4113.5,4113.4,0.002]
[1759123476694,3.0,4113.5,4113.4,0.002]
[1759123477011,10.87957624,4113.5,4113.4,0.6676]
[1759123478098,7.82557624,4113.5,4113.4,0.6676]
[1759123478299,10.87957624,4113.5,4113.4,0.6676]
[1759123478608,12.39495116,4113.5,4113.4,0.6676]
[1759123478973,7.56937492,4113.5,4113.4,0.4682]
[1759123479181,10.87957624,4113.5,4113.4,0.702]
[1759123480608,6.054,4113.5,4113.4,0.702]
[1759123480807,10.87957624,4113.5,4113.4,0.702]
[1759123480987,10.87883106,4113.5,4113.4,0.702]
[1759123481875,10.87883106,4113.5,4113.4,3.13307891]
[1759123482108,10.87883106,4113.5,4113.4,0.702]
[1759123482307,10.87883106,4113.5,4113.4,3.13307891]
[1759123482613,10.87883106,4113.5,4113.4,0.702]
[1759123482812,10.87883106,4113.5,4113.4,3.13307891]
[1759123483113,10.87883106,4113.5,4113.4,0.702]
[1759123483606,10.87783106,4113.5,4113.4,0.702]
[1759123484007,6.053,4113.5,4113.4,0.702]
[1759123484191,10.87783106,4113.5,4113.4,0.702]
[1759123484708,10.87783106,4113.5,4113.4,3.13307891]
[1759123487412,11.96571417,4113.5,4113.4,0.002]
[1759123488118,8.91271417,4113.5,4113.4,0.002]
[1759123488315,11.96371417,4113.5,4113.4,0.002]
[1759123488984,19.21956504,4113.5,4113.4,0.002]
[1759123489183,19.56681165,4113.5,4113.4,0.002]
[1759123489612,14.74198059,4113.5,4113.4,0.002]
[1759123491699,21.02781165,4113.5,4113.4,0.002]
[1759123492243,16.96311814,4113.5,4113.4,0.002]
[1759123493315,14.53209833,4113.5,4113.4,0.002]
[1759123493707,14.18485172,4113.5,4113.4,0.002]
[1759123493906,16.61587153,4113.5,4113.4,0.002]
[1759123494103,14.56619264,4113.5,4113.4,0.002]
[1759123494307,16.99721245,4113.5,4113.4,0.002]
[1759123494931,4.46922403,4113.5,4113.4,0.002]
[1759123495111,7.51922403,4113.5,4113.4,0.002]
[1759123495315,9.95024384,4113.5,4113.4,0.002]
[1759123495705,7.51922403,4113.5,4113.4,0.002]
[1759123496526,8.98022403,4113.5,4113.4,0.002]
[1759123496725,5.93022403,4113.5,4113.4,0.002]
[1759123496926,8.98022403,4113.5,4113.4,0.702]
[1759123498902,3.38134092,4113.5,4113.4,3.13307891]
[1759123499129,6.1708,4113.5,4113.4,3.13307891]
[1759123499438,6.1708,4113.5,4113.4,0.702]
[1759123499807,6.1708,4113.5,4113.4,3.13307891]
[1759123500209,3.1718,4113.5,4113.4,3.13307891]
[1759123500907,6.1718,4113.5,4113.4,3.13307891]
[1759123503234,6.1718,4113.5,4113.4,17.63307891]
[1759123505032,6.1718,4113.5,4113.4,3.13307891]
[1759123505216,3.1208,4113.5,4113.4,3.13307891]
[1759123505424,6.1698,4113.5,4113.4,3.13307891]
[1759123505973,3.1208,4113.5,4113.4,3.13307891]
[1759123506150,6.1698,4113.5,4113.4,3.13307891]
[1759123506321,3.1208,4113.5,4113.4,3.13307891]
[1759123506667,0.001,4113.6,4113.5,2.43101981]
[1759123506854,3.05,4113.6,4113.5,3.13101981]
[1759123507226,3.05,4113.6,4113.5,17.63101981]
[1759123507647,0.001,4113.6,4113.5,17.63101981]
[1759123508132,3.05,4113.6,4113.5,17.63101981]
[1759123512571,3.049,4113.6,4113.5,17.63101981]
[1759123519170,0.001,4113.6,4113.5,17.63101981]
[1759123530398,0.001,4113.6,4113.5,18.36209324]
[1759123532266,0.001,4113.6,4113.5,17.66209324]
[1759123532683,0.001,4113.6,4113.5,18.34889324]
[1759123536486,0.001,4113.6,4113.5,16.93101981]
[1759123536686,0.001,4113.6,4113.5,17.61781981]
[1759123537615,0.001,4113.6,4113.5,17.61981981]
[1759123538421,0.001,4113.6,4113.5,16.93301981]
[1759123542317,0.001,4113.6,4113.5,17.61641981]
[1759123548000,0.001,4113.6,4113.5,20.66241981]
[1759123548202,0.001,4113.6,4113.5,21.39349323]
[1759123549799,0.001,4113.6,4113.5,16.93301981]
[1759123550034,0.001,4113.6,4113.5,21.45441981]
[1759123550240,0.001,4113.6,4113.5,22.18547809]
[1759123555628,0.001,4113.6,4113.5,18.34747809]
[1759123555798,0.001,4113.6,4113.5,21.39347809]
[1759123558834,0.001,4113.6,4113.5,22.18547809]
[1759123559806,0.001,4113.6,4113.5,22.30627809]
[1759123567587,0.001,4113.6,4113.5,25.30627809]
[1759123568759,0.001,4113.6,4113.5,24.62287809]
[1759123568959,0.001,4113.6,4113.5,28.85287809]
[1759123569163,0.001,4113.6,4113.5,29.08127809]
[1759123570277,0.001,4113.6,4113.5,28.85287809]
[1759123571185,0.001,4113.6,4113.5,25.85287809]
[1759123572261,0.001,4113.6,4113.5,26.52447809]
[1759123574650,0.001,4113.6,4113.5,25.85287809]
[1759123574854,0.001,4113.6,4113.5,26.53977809]
[1759123577378,0.001,4113.6,4113.5,26.54343271]
[1759123581435,4.82167673,4115.3,4115.2,2.43001555]
[1759123581593,7.82167673,4115.3,4115.2,2.43001555]
[1759123586545,4.82167673,4115.3,4115.2,2.43001555]
[1759123586717,3.044,4115.5,4115.4,2.42989745]
[1759123586910,0.001,4115.8,4115.1,14.5]
[1759123586911,0.001,4115.8,4115.5,2.42983841]
[1759123587243,7.86567673,4115.7,4115.6,2.42977937]
[1759123587600,7.86567673,4115.7,4115.5,2.42977999]
[1759123587601,9.13451208,4115.7,4115.5,2.42977999]
[1759123587824,9.13451208,4115.7,4115.1,14.5]
[1759123587825,9.13451208,4115.7,4115.4,2.42989745]
[1759123588139,4.82167673,4115.5,4115.4,2.42989745]
[1759123590040,7.82167673,4115.5,4115.4,2.42989745]
[1759123591047,10.86567673,4115.5,4115.4,2.42989745]
[1759123591539,10.86567673,4115.5,4115.4,16.92989745]
[1759123592310,10.86567673,4115.5,4115.4,14.5]
[1759123592514,12.09130794,4115.5,4115.4,14.5]
[1759123592740,12.09130794,4115.5,4115.4,16.92989745]
[1759123593424,12.09130794,4115.5,4115.4,2.42989745]
[1759123593748,9.04730794,4115.5,4115.4,2.42989745]
[1759123594049,12.09130794,4115.5,4115.4,2.42989745]
[1759123594947,9.04730794,4115.5,4115.4,2.42989745]
[1759123595253,12.09130794,4115.5,4115.4,2.42989745]
[1759123598014,0.50293315,4115.8,4115.7,2.42972033]
[1759123598015,0.001,4115.8,4115.7,2.42972033]
[1759123598411,0.001,4115.8,4115.7,3.11662033]
[1759123598615,0.001,4115.8,4115.7,16.92972033]
[1759123599247,0.001,4115.8,4115.7,17.38962033]
[1759123600545,0.001,4115.8,4115.7,17.61522033]
[1759123602044,0.001,4115.8,4115.7,3.11522033]
[1759123602440,0.001,4115.8,4115.7,17.61522033]
[1759123603914,0.001,4115.8,4115.7,17.71265049]
[1759123605564,3.043,4116.4,4115.7,17.71265049]
[1759123605565,0.001,4117.6,4115.8,3.2216613]
[1759123605721,0.001,4117.6,4115.7,16.72293016]
[1759123605722,0.001,4117.6,4117.4,2.42871715]
[1759123606122,0.001,4117.6,4117.4,16.92871715]
[1759123606430,0.001,4117.6,4117.4,17.02610769]
[1759123608054,0.001,4117.6,4117.4,17.14690769]
[1759123609050,0.001,4117.6,4117.4,17.60680769]
[1759123609440,0.001,4117.6,4117.4,3.10680769]
[1759123609823,0.001,4117.6,4117.4,17.60680769]
[1759123610244,0.001,4117.6,4117.4,17.83240769]
[1759123610728,0.001,4117.6,4117.4,17.73501715]
[1759123611187,0.001,4117.6,4117.4,20.78301715]
[1759123614970,0.001,4117.6,4117.4,24.57501715]
[1759123615672,0.001,4117.6,4117.4,21.57501715]
[1759123619880,0.001,4117.6,4117.4,17.04951715]
[1759123620036,0.001,4117.6,4117.4,20.09551715]
[1759123623279,0.001,4117.6,4117.4,17.04951715]
[1759123623487,0.002,4117.5,4117.4,17.04951715]
[1759123624195,0.001,4117.5,4117.4,17.04951715]
[1759123625987,0.001,4117.5,4117.4,17.73501715]
[1759123628761,0.001,4117.5,4117.4,18.52701715]
[1759123631805,0.001,4117.5,4117.4,17.04951715]
[1759123635181,0.001,4117.5,4117.4,17.71871715]
[1759123636414,0.001,4117.5,4117.4,14.6208]
[1759123636586,0.001,4117.5,4117.4,2.42871715]
[1759123636790,0.002,4117.5,4117.4,2.42871715]
[1759123637191,0.55822843,4117.5,4117.1,14.502]
[1759123637451,0.001,4117.4,4117.2,2.42878745]
[1759123637616,0.55822843,4117.5,4117.1,14.502]
[1759123637820,0.001,4117.4,4117.1,14.502]
[1759123638114,0.001,4117.3,4117.2,2.42877723]
[1759123638613,0.28588391,4117.3,4117.2,2.42877723]
[1759123638915,0.28688391,4117.3,4117.2,2.42877723]
[1759123639609,0.001,4117.3,4117.2,2.42877723]
[1759123640309,0.001,4117.3,4117.1,0.002]
[1759123640497,0.55822843,4117.5,4117.1,0.002]
[1759123640702,0.001,4117.2,4117.1,0.002]
[1759123642632,0.001,4117.2,4117.1,2.43089412]
[1759123642941,3.047,4117.3,4117.1,2.43089412]
[1759123643150,3.047,4117.3,4117.2,2.42883513]
[1759123643702,3.047,4117.3,4117.1,0.002]
[1759123643936,4.26455127,4117.3,4117.1,2.43089144]
[1759123644543,4.26455127,4117.3,4117.1,0.002]
[1759123644713,4.26455127,4117.3,4117.1,2.43088427]
[1759123645042,4.26555127,4117.3,4117.1,2.43088427]
[1759123645554,4.26555127,4117.3,4117.2,2.42883513]
[1759123645705,4.26455127,4117.3,4117.2,2.42883513]
[1759123645903,4.26455127,4117.3,4117.1,0.002]
[1759123646233,0.78237797,4117.2,4117.1,2.43087656]
[1759123646733,6.35066228,4117.2,4117.1,0.002]
[1759123647040,6.35066228,4117.2,4117.1,2.43089412]
[1759123648701,9.39566228,4117.2,4117.1,2.43089412]
[1759123650034,6.35066228,4117.2,4117.1,0.002]
[1759123650240,9.39666228,4117.2,4117.1,0.002]
[1759123651104,9.39566228,4117.2,4117.1,0.002]
[1759123652839,9.39566228,4117.2,4117.1,2.43089412]
[1759123653521,9.39566228,4117.2,4117.1,0.002]
[1759123654048,9.39566228,4117.2,4117.1,2.43089412]
[1759123655637,9.39666228,4117.2,4117.1,0.002]
[1759123656118,9.39666228,4117.2,4117.1,2.43089412]
[1759123656661,9.39666228,4117.2,4117.1,0.002]
[1759123657854,9.39666228,4117.2,4117.1,2.43089412]
[1759123658167,9.39666228,4117.2,4117.1,0.002]
[1759123659128,9.39666228,4117.2,4117.1,2.43089412]
[1759123659628,9.39666228,4117.2,4117.1,0.002]
[1759123661069,9.39666228,4117.2,4117.1,2.43089412]
[1759123661358,9.39666228,4117.2,4117.1,0.002]
[1759123665569,9.39666228,4117.2,4117.1,2.43089412]
[1759123666283,6.35166228,4117.2,4117.1,2.43089412]
[1759123666566,3.044,4117.2,4117.1,3.12339412]
[1759123667497,0.001,4117.2,4117.1,3.12339412]
[1759123667666,0.001,4117.2,4117.1,3.14768306]
[1759123667833,0.001,4117.2,4117.1,17.64768306]
[1759123668034,0.001,4117.2,4117.1,17.62339412]
[1759123668661,0.001,4117.2,4117.1,20.66639412]
[1759123676255,0.001,4117.2,4117.1,21.45839412]
[1759123676787,1e-08,4117.6,4117.5,3.22065816]
[1759123676971,1e-08,4117.6,4117.5,6.26265816]
[1759123677170,1e-08,4117.6,4117.5,6.95515816]
[1759123677486,1e-08,4117.6,4117.5,7.07595816]
[1759123688201,1e-08,4117.6,4117.5,2.54945816]
[1759123688398,1e-08,4117.6,4117.5,5.59145816]
[1759123688596,1e-08,4117.6,4117.5,6.03555816]
[1759123688797,1e-08,4117.6,4117.5,5.59145816]
[1759123690422,1e-08,4117.6,4117.5,7.93287772]
[1759123694599,1e-08,4117.6,4117.5,7.14087772]
[1759123694807,1e-08,4117.6,4117.5,5.59145816]
[1759123696986,0.00100001,4117.6,4117.5,2.54945816]
[1759123697688,1e-08,4117.6,4117.5,2.54945816]
[1759123699321,0.00100001,4117.6,4117.3,2.42875581]
[1759123699480,0.00100001,4117.6,4117.1,16.93087093]
[1759123699481,4.81372546,4117.4,4117.1,16.93087093]
[1759123699680,0.001,4117.3,4117.1,16.93088884]
[1759123699928,0.001,4117.3,4117.1,0.002]
[1759123700110,4.93452546,4117.4,4117.1,0.002]
[1759123700287,0.001,4117.2,4117.1,0.002]
[1759123700489,0.001,4117.2,4117.1,2.43088873]
[1759123703030,0.8458198,4117.3,4117.2,2.42883513]
[1759123703444,0.8468198,4117.3,4117.2,2.42883513]
[1759123703798,0.8458198,4117.3,4117.2,2.42883513]
[1759123704000,0.8468198,4117.3,4117.1,0.002]
[1759123704233,0.88243453,4117.2,4117.1,0.002]
[1759123704391,0.88243453,4117.2,4117.1,2.43089412]
[1759123704828,0.88343453,4117.2,4117.1,0.002]
[1759123705591,1.00423453,4117.2,4117.1,0.002]
[1759123707322,1.00423453,4117.2,4117.1,2.43089412]
[1759123708519,1.00323453,4117.2,4117.1,2.43089412]
[1759123708721,4.04523453,4117.2,4117.1,2.43089412]
[1759123710860,1.00323453,4117.2,4117.1,2.43089412]
[1759123711036,3.1628,4117.2,4117.1,2.43089412]
[1759123713858,3.042,4117.2,4117.1,2.43089412]
[1759123715640,4.93452546,4117.4,4117.3,2.42877613]
[1759123715840,7.97652546,4117.4,4117.3,2.42877613]
[1759123718396,7.97652546,4117.4,4117.2,2.42882209]
[1759123718691,0.83574962,4117.3,4117.2,2.42882209]
[1759123719465,3.87774962,4117.3,4117.2,2.42882209]
[1759123721809,3.87774962,4117.3,4117.2,3.11022209]
[1759123723108,4.93452546,4117.4,4117.3,2.42877613]
[1759123723296,7.97652546,4117.4,4117.3,3.11017613]
[1759123723810,7.97652546,4117.4,4117.3,2.67607613]
[1759123724024,7.97652546,4117.4,4117.3,2.42877613]
[1759123724331,0.1208,4117.4,4117.3,2.42877613]
[1759123724526,3.00000001,4117.6,4117.5,2.42865816]
[1759123724829,5.92765256,4117.6,4117.2,0.1208]
[1759123724978,5.92765256,4117.6,4117.5,2.42865816]
[1759123727199,2.92765256,4117.6,4117.4,2.42870351]
[1759123728332,2.92765256,4117.6,4117.3,2.42876634]
[1759123728538,4.93452546,4117.4,4117.3,2.42876634]
[1759123728703,8.76284326,4117.4,4117.3,2.42876634]
[1759123729037,8.76284326,4117.4,4117.1,2.43083916]
[1759123729538,8.76284326,4117.4,4117.2,2.42883134]
[1759123730097,8.76284326,4117.4,4117.1,2.43088315]
[1759123730414,0.1208,4117.2,4117.1,0.002]
[1759123730603,4.03908433,4117.2,4117.1,0.002]
[1759123732331,4.03908433,4117.2,4117.1,2.43089412]
[1759123733532,7.97652546,4117.2,4117.1,2.43089412]
[1759123736254,3.1628,4117.2,4117.1,2.43089412]
[1759123737048,4.6238,4117.2,4117.1,2.43089412]
[1759123737252,3.1628,4117.2,4117.1,2.43089412]
[1759123738551,3.1628,4117.2,4117.1,3.11229412]
[1759123739449,3.1628,4117.2,4117.1,2.43089412]
[1759123741369,3.47908,4117.2,4117.1,2.43089412]
[1759123741776,0.43708,4117.2,4117.1,2.43089412]
[1759123741996,3.47908,4117.2,4117.1,2.86499412]
[1759123742301,3.47908,4117.2,4117.1,3.11229412]
[1759123751844,0.43708,4117.2,4117.1,3.11229412]
[1759123752050,3.1628,4117.2,4117.1,3.11229412]
[1759123753583,3.1628,4117.2,4117.1,2.67499412]
[1759123753876,3.1628,4117.2,4117.1,3.11539412]
[1759123754287,3.1628,4117.2,4117.1,2.87129412]
[1759123754464,3.1628,4117.2,4117.1,2.43089412]
[1759123756082,6.1628,4117.2,4117.1,2.81499412]
[1759123756379,6.1628,4117.2,4117.1,3.25539412]
[1759123756803,5.5725877,4117.6,4117.1,3.25539412]
[1759123756804,1e-08,4117.6,4117.5,2.42865816]
[1759123757093,2.00700001,4117.6,4117.5,3.25315816]
[1759123757296,2.00700001,4117.6,4117.5,0.3841]
[1759123757474,2.00700001,4117.6,4117.5,2.81275816]
[1759123757662,2.00700001,4117.6,4117.5,3.25315816]
[1759123757868,2.00700001,4117.6,4117.5,2.56865816]
[1759123758259,5.20790001,4117.6,4117.5,0.14]
[1759123758990,5.20790001,4117.6,4117.5,2.56865816]
[1759123762171,5.20790001,4117.6,4117.5,0.14]
[1759123764606,5.20790001,4117.6,4117.5,2.56865816]
[1759123764899,5.00700001,4117.6,4117.5,2.56865816]
[1759123766409,2.00700001,4117.6,4117.5,2.56865816]
[1759123766619,1e-08,4117.6,4117.5,3.25315816]
[1759123766917,3.04200001,4117.6,4117.5,3.25315816]
[1759123768117,3.04200001,4117.6,4117.5,17.75315816]
[1759123768622,1e-08,4117.6,4117.5,17.75315816]
[1759123768994,1e-08,4117.6,4117.5,17.87395816]
[1759123771204,1e-08,4117.6,4117.5,3.37395816]
[1759123771600,1e-08,4117.6,4117.5,17.87395816]
[1759123772929,1e-08,4117.6,4117.5,20.79515816]
[1759123773232,1e-08,4117.6,4117.5,20.89253969]
[1759123773428,1e-08,4117.6,4117.5,20.89453969]
[1759123774331,1e-08,4117.6,4117.5,20.79715816]
[1759123775259,1e-08,4117.6,4117.5,20.35675816]
[1759123775445,1e-08,4117.6,4117.5,20.79715816]
[1759123777330,1e-08,4117.6,4117.5,17.07065816]
[1759123777946,1e-08,4117.6,4117.5,17.75515816]
[1759123781876,1e-08,4117.6,4117.5,17.07065816]
[1759123782452,1e-08,4117.6,4117.5,17.30885816]
[1759123782654,1e-08,4117.6,4117.5,17.77725816]
[1759123782853,1e-08,4117.6,4117.5,17.89805816]
[1759123785174,1e-08,4117.6,4117.5,3.39805816]